bitfinex/quotes_BTCUSD_20240831
["timestamp","ask_amount","ask_price","bid_price","bid_amount"]
[1725082218085,4.57044,59441.0,59440.0,0.008998]
[1725082218291,4.57044,59441.0,59437.0,0.008998]
[1725082218292,0.353308,59438.0,59437.0,0.008998]
[1725082218425,3.94615541,59438.0,59437.0,0.008998]
[1725082218848,4.67039228,59438.0,59437.0,0.008998]
[1725082219091,4.69679592,59438.0,59437.0,0.008998]
[1725082219738,4.70179592,59438.0,59437.0,0.008998]
[1725082220350,4.80179592,59438.0,59437.0,0.008998]
[1725082220523,4.80679592,59438.0,59437.0,0.008998]
[1725082222598,1.29622692,59438.0,59437.0,0.008998]
[1725082222852,4.80679592,59438.0,59437.0,0.008998]
[1725082232087,4.68902692,59438.0,59437.0,0.008998]
[1725082232515,4.80679592,59438.0,59437.0,0.008998]
[1725082235294,4.48897851,59438.0,59437.0,0.008998]
[1725082235507,4.48897851,59438.0,59437.0,0.148298]
[1725082235508,0.05402351,59438.0,59437.0,0.148298]
[1725082236404,0.40733151,59438.0,59437.0,0.148298]
[1725082236582,0.16679251,59438.0,59437.0,0.148298]
[1725082236814,0.16679251,59438.0,59437.0,0.156298]
[1725082237011,0.16779251,59438.0,59437.0,0.156298]
[1725082237509,0.16179251,59438.0,59437.0,0.148298]
[1725082237711,0.26179251,59438.0,59437.0,0.148298]
[1725082237972,0.26379251,59438.0,59437.0,0.167298]
[1725082240083,0.14602351,59438.0,59437.0,0.167298]
[1725082240541,0.26379251,59438.0,59437.0,0.167298]
[1725082245601,0.26461151,59438.0,59437.0,0.167298]
[1725082249776,0.14684251,59438.0,59437.0,0.167298]
[1725082252962,0.14684251,59438.0,59437.0,0.285069]
[1725082253168,0.14684251,59438.0,59437.0,0.167298]
[1725082256124,0.14684251,59438.0,59437.0,0.1670812]
[1725082256472,0.14684251,59438.0,59437.0,0.2848522]
[1725082257113,0.14684251,59438.0,59437.0,0.5203952]
[1725082257921,0.14584251,59438.0,59437.0,0.5113952]
[1725082258115,0.14484251,59438.0,59437.0,0.5013952]
[1725082258550,0.14584251,59438.0,59437.0,0.5153952]
[1725082259942,0.14684251,59438.0,59437.0,0.5233952]
[1725082260647,0.14584251,59438.0,59437.0,0.5153952]
[1725082260875,0.14484251,59438.0,59437.0,0.5153952]
[1725082261114,0.14484251,59438.0,59437.0,0.5293952]
[1725082261815,0.14484251,59438.0,59437.0,0.7649382]
[1725082262090,0.04484251,59438.0,59437.0,1.08775961]
[1725082262315,0.04484251,59438.0,59437.0,1.48216574]
[1725082262548,0.04484251,59438.0,59437.0,1.41423401]
[1725082262781,0.04484251,59438.0,59437.0,1.54039867]
[1725082263015,0.04484251,59438.0,59437.0,1.41423401]
[1725082263283,0.04484251,59438.0,59437.0,1.40023401]
[1725082263517,0.04484251,59438.0,59437.0,1.51509149]
[1725082263518,0.04584251,59438.0,59437.0,1.51509149]
[1725082263974,0.04584251,59438.0,59437.0,1.50109149]
[1725082264201,0.04584251,59438.0,59437.0,1.51509149]
[1725082266034,0.04484251,59438.0,59437.0,1.50109149]
[1725082266494,0.04584251,59438.0,59437.0,1.51509149]
[1725082266947,0.04484251,59438.0,59437.0,1.50109149]
[1725082267187,0.04484251,59438.0,59437.0,1.11609647]
[1725082267420,0.04584251,59438.0,59437.0,1.11609647]
[1725082267656,0.04584251,59438.0,59437.0,1.40022961]
[1725082267905,0.04584251,59438.0,59437.0,1.41422961]
[1725082268131,0.04584251,59438.0,59437.0,1.40022961]
[1725082268611,0.04584251,59438.0,59437.0,1.41422961]
[1725082269312,0.04584251,59438.0,59437.0,1.4142223]
[1725082270261,0.04584251,59438.0,59437.0,1.4898314]
[1725082270497,0.04584251,59438.0,59437.0,1.4142223]
[1725082270716,0.04584251,59438.0,59437.0,1.4122223]
[1725082270952,0.04584251,59438.0,59437.0,1.4142223]
[1725082271172,0.04584251,59438.0,59437.0,1.4122223]
[1725082271622,0.04584251,59438.0,59437.0,1.4142223]
[1725082272061,0.04584251,59438.0,59437.0,1.51504006]
[1725082272290,0.04584251,59438.0,59437.0,1.4142223]
[1725082272516,0.04584251,59438.0,59437.0,1.51504006]
[1725082274348,0.04584251,59438.0,59437.0,1.51504127]
[1725082274836,0.04584251,59438.0,59437.0,1.4142133]
[1725082275293,0.04584251,59438.0,59437.0,1.51504425]
[1725082275533,0.04584251,59438.0,59437.0,1.4142133]
[1725082277625,0.08227841,59451.0,59448.0,0.117748]
[1725082277829,0.08227841,59451.0,59448.0,0.117749]
[1725082278347,0.01761987,59450.0,59448.0,0.117749]
[1725082279011,0.01761987,59450.0,59448.0,0.129749]
[1725082279498,0.01761987,59450.0,59449.0,0.117747]
[1725082280033,0.08227841,59451.0,59449.0,0.117747]
[1725082280967,0.08227841,59451.0,59449.0,0.131747]
[1725082281199,0.08227841,59451.0,59449.0,0.117747]
[1725082281432,0.08227841,59453.0,59450.0,0.117745]
[1725082281670,0.000819,59454.0,59451.0,0.23885075]
[1725082281909,0.000819,59454.0,59453.0,0.11774]
[1725082282136,0.000819,59454.0,59453.0,0.12110366]
[1725082282363,0.000819,59454.0,59453.0,0.11774]
[1725082282605,0.02721335,59454.0,59453.0,0.11774]
[1725082283525,0.02721335,59454.0,59453.0,0.35322]
[1725082283765,0.02721335,59454.0,59453.0,0.36222]
[1725082283971,0.02721335,59454.0,59453.0,0.37222]
[1725082284633,0.02721335,59454.0,59453.0,0.13674]
[1725082285079,0.02721335,59454.0,59453.0,0.37222]
[1725082285296,0.02721335,59454.0,59453.0,0.13674]
[1725082285533,0.02721335,59454.0,59453.0,0.12774]
[1725082285761,0.02721335,59454.0,59453.0,0.14174]
[1725082286034,0.02721335,59454.0,59453.0,0.6127]
[1725082286265,0.02721335,59454.0,59453.0,0.7443]
[1725082286497,0.02721335,59454.0,59453.0,0.7583]
[1725082293173,0.02721335,59454.0,59453.0,0.80872262]
[1725082293449,0.02721335,59454.0,59453.0,1.04920262]
[1725082293711,0.02721335,59454.0,59453.0,1.53035174]
[1725082293961,0.02721335,59454.0,59453.0,1.3724394]
[1725082294194,0.02721335,59454.0,59453.0,1.38243524]
[1725082296084,0.02721335,59454.0,59453.0,1.50844284]
[1725082296590,0.02721335,59454.0,59453.0,1.40541187]
[1725082297265,0.02721335,59454.0,59453.0,1.53140892]
[1725082297988,0.02721335,59454.0,59453.0,1.53340892]
[1725082298460,0.02721335,59454.0,59453.0,1.40741187]
[1725082299177,0.02721335,59454.0,59453.0,1.40741336]
[1725082299838,0.02721335,59454.0,59453.0,1.53341767]
[1725082300456,0.02721335,59454.0,59453.0,1.40741336]
[1725082300790,0.02721335,59454.0,59453.0,1.53341767]
[1725082300993,0.02721335,59454.0,59453.0,1.40541336]
[1725082301985,0.02721335,59454.0,59453.0,1.53141767]
[1725082302187,0.02721335,59454.0,59453.0,1.40541336]
[1725082302396,0.02721335,59454.0,59453.0,1.53141767]
[1725082303300,0.02721335,59454.0,59453.0,1.53231747]
[1725082304165,0.02721335,59454.0,59453.0,1.53233657]
[1725082304872,0.02721335,59454.0,59453.0,1.53234811]
[1725082305092,0.02721335,59454.0,59453.0,1.53234946]
[1725082305526,0.02721335,59454.0,59453.0,1.40631286]
[1725082306108,0.000818,59456.0,59455.0,0.976052]
[1725082306318,0.000818,59456.0,59455.0,1.37268506]
[1725082306693,0.02720741,59456.0,59455.0,1.37268506]
[1725082307528,0.02720741,59456.0,59455.0,1.52173836]
[1725082307990,0.02720741,59456.0,59455.0,1.41149927]
[1725082308380,0.02720741,59456.0,59455.0,1.53755741]
[1725082308710,0.02720741,59456.0,59455.0,1.41149927]
[1725082308945,0.02720741,59456.0,59455.0,1.42349927]
[1725082309127,0.02720741,59456.0,59455.0,1.42347656]
[1725082309343,0.02720741,59456.0,59455.0,1.54952744]
[1725082311642,0.000818,59456.0,59455.0,1.54952744]
[1725082313954,0.000818,59456.0,59455.0,1.54952133]
[1725082314574,0.000818,59456.0,59455.0,1.53370712]
[1725082314803,0.000818,59456.0,59455.0,1.54952135]
[1725082315026,0.000818,59456.0,59455.0,1.55626835]
[1725082316167,0.000818,59456.0,59455.0,1.43022445]
[1725082317790,0.000818,59456.0,59455.0,1.41441022]
[1725082317929,0.000818,59456.0,59455.0,1.43022445]
[1725082319567,0.000818,59456.0,59455.0,1.05661323]
[1725082321542,0.02720738,59456.0,59455.0,1.05661323]
[1725082323333,0.02720738,59456.0,59455.0,1.05861323]
[1725082324296,0.02720738,59456.0,59455.0,1.43222445]
[1725082324612,0.02720738,59456.0,59455.0,1.43222444]
[1725082326847,0.02720738,59456.0,59455.0,1.41641021]
[1725082327059,0.02720738,59456.0,59455.0,0.75856621]
[1725082327279,0.02720738,59456.0,59455.0,0.75181921]
[1725082327486,0.02720738,59456.0,59455.0,0.87803593]
[1725082327660,0.02720738,59456.0,59455.0,0.75181921]
[1725082328630,0.02720738,59456.0,59455.0,0.75681921]
[1725082329612,0.02720738,59456.0,59455.0,0.99229121]
[1725082329861,0.02720738,59456.0,59455.0,1.00810645]
[1725082330479,0.02720738,59456.0,59455.0,1.01010645]
[1725082331792,0.02720738,59456.0,59455.0,1.01510645]
[1725082332004,0.02720738,59456.0,59455.0,1.15970645]
[1725082332417,0.02720738,59456.0,59455.0,1.49545686]
[1725082332839,0.02720738,59456.0,59455.0,1.49045686]
[1725082333047,0.02720738,59456.0,59455.0,2.16491483]
[1725082334311,0.02720738,59456.0,59455.0,2.01352281]
[1725082334710,0.02720738,59456.0,59455.0,2.00152281]
[1725082334913,0.02720738,59456.0,59455.0,2.00252281]
[1725082335350,0.02720738,59456.0,59455.0,2.01652281]
[1725082337629,0.02720738,59456.0,59455.0,2.00070757]
[1725082338037,0.02720738,59456.0,59455.0,2.01652181]
[1725082338676,0.02720738,59456.0,59455.0,2.0165125]
[1725082339517,0.02720738,59456.0,59455.0,2.0025125]
[1725082339847,0.02720738,59456.0,59455.0,2.0165125]
[1725082340265,0.02720738,59456.0,59455.0,2.0025125]
[1725082340461,0.02720738,59456.0,59455.0,2.0165125]
[1725082341126,0.02720738,59456.0,59455.0,2.0265125]
[1725082341329,0.02720738,59456.0,59455.0,2.04446826]
[1725082341547,0.02720738,59456.0,59455.0,2.06028238]
[1725082341715,0.000819,59458.0,59457.0,0.874894]
[1725082341917,0.000819,59458.0,59457.0,1.94624314]
[1725082342317,0.02720728,59458.0,59457.0,1.94624314]
[1725082342524,0.02720728,59458.0,59457.0,2.08584314]
[1725082342922,0.000819,59459.0,59457.0,2.08584314]
[1725082342923,0.000819,59459.0,59458.0,0.84111]
[1725082343158,0.000819,59459.0,59458.0,1.98260427]
[1725082343324,0.000819,59459.0,59458.0,2.01637427]
[1725082343694,0.50540786,59476.0,59458.0,2.01637427]
[1725082343695,0.15791242,59478.0,59469.0,0.005]
[1725082343903,0.15791242,59478.0,59475.0,0.07581133]
[1725082344110,0.15791242,59478.0,59476.0,0.19350533]
[1725082344318,0.15791242,59478.0,59475.0,0.07581133]
[1725082344524,0.15791242,59478.0,59475.0,0.19350633]
[1725082345215,0.15791242,59478.0,59477.0,0.05051521]
[1725082345347,0.25791242,59478.0,59477.0,0.05051521]
[1725082346328,0.25791242,59478.0,59476.0,0.05051521]
[1725082346592,0.25791242,59478.0,59477.0,0.013]
[1725082347921,0.25791242,59478.0,59477.0,0.025]
[1725082348907,0.25791242,59478.0,59477.0,0.012]
[1725082349143,0.15543015,59479.0,59477.0,0.012]
[1725082350101,0.15543015,59479.0,59475.0,0.1681863]
[1725082350522,0.15543015,59479.0,59477.0,0.024]
[1725082350789,0.15543015,59479.0,59477.0,0.011]
[1725082351000,0.15543015,59479.0,59475.0,0.1681863]
[1725082351210,0.1,59478.0,59475.0,0.128696]
[1725082351436,0.1,59478.0,59476.0,0.117694]
[1725082352062,0.1,59478.0,59477.0,0.011]
[1725082352269,0.13855915,59479.0,59477.0,0.011]
[1725082352471,0.02638441,59478.0,59477.0,0.011]
[1725082352671,0.02638441,59478.0,59477.0,0.023]
[1725082352871,0.02638441,59478.0,59477.0,0.011]
[1725082353331,0.02638441,59478.0,59477.0,0.024]
[1725082354306,0.02638441,59478.0,59477.0,0.013]
[1725082355246,0.02638441,59478.0,59477.0,0.601462]
[1725082355441,0.02638441,59478.0,59477.0,0.67719745]
[1725082355653,0.02638441,59478.0,59477.0,0.97498327]
[1725082357311,0.02638441,59478.0,59477.0,1.06263622]
[1725082358377,0.02638441,59478.0,59477.0,0.68910064]
[1725082359153,0.02638441,59478.0,59477.0,1.08782417]
[1725082359528,0.02638441,59478.0,59477.0,1.45783606]
[1725082359731,0.02638441,59478.0,59477.0,1.45983606]
[1725082360449,0.02638441,59478.0,59477.0,1.44483606]
[1725082360851,0.02638441,59478.0,59477.0,1.44683606]
[1725082361313,0.02638441,59478.0,59477.0,1.45883606]
[1725082361508,0.02638441,59478.0,59477.0,1.37655765]
[1725082361718,0.02638441,59478.0,59477.0,1.36455765]
[1725082362177,0.02638441,59478.0,59477.0,1.46535407]
[1725082362329,0.02638441,59478.0,59477.0,1.47935407]
[1725082363373,0.02638441,59478.0,59477.0,1.47933496]
[1725082363574,0.02638441,59478.0,59477.0,1.24484976]
[1725082364873,0.02638441,59478.0,59477.0,1.48023476]
[1725082365056,0.02638441,59478.0,59477.0,1.24484976]
[1725082367280,0.02638441,59478.0,59477.0,1.1460633]
[1725082367858,0.02638441,59478.0,59477.0,1.1440633]
[1725082368308,0.02638441,59478.0,59477.0,1.14406331]
[1725082373386,0.02638441,59478.0,59477.0,1.13406331]
[1725082373592,0.02638441,59478.0,59477.0,1.14406331]
[1725082374240,0.02638441,59478.0,59477.0,1.24482448]
[1725082375951,0.03273882,59489.0,59481.0,0.235368]
[1725082376220,0.117675,59486.0,59482.0,0.117682]
[1725082377239,0.26172394,59488.0,59478.0,0.0503977]
[1725082377240,0.117688,59479.0,59478.0,0.0503977]
[1725082377448,0.08227841,59484.0,59476.0,0.0503977]
[1725082377449,0.19996841,59478.0,59476.0,0.0503977]
[1725082377651,0.19996841,59478.0,59475.0,0.0503977]
[1725082378024,0.117692,59477.0,59475.0,0.0503977]
[1725082378231,0.10866067,59478.0,59474.0,0.117698]
[1725082378465,0.10866067,59478.0,59475.0,0.05041371]
[1725082379243,0.10866067,59478.0,59475.0,0.16810871]
[1725082379450,0.10866067,59478.0,59475.0,0.06441371]
[1725082379451,0.001,59477.0,59475.0,0.06441371]
[1725082379651,0.001,59477.0,59475.0,0.131695]
[1725082380251,0.10866067,59478.0,59475.0,0.16810871]
[1725082380482,0.02738226,59478.0,59475.0,0.18210871]
[1725082381070,0.02838226,59478.0,59475.0,0.18210871]
[1725082381296,0.02838226,59478.0,59476.0,0.117694]
[1725082381499,0.02738226,59478.0,59476.0,0.117694]
[1725082381952,0.02738226,59478.0,59475.0,0.05041371]
[1725082382175,0.02738226,59478.0,59475.0,0.18112655]
[1725082382176,0.001,59477.0,59475.0,0.18112655]
[1725082382839,0.001,59477.0,59476.0,0.013]
[1725082383040,0.02738226,59478.0,59476.0,0.05043155]
[1725082383266,0.02738226,59478.0,59476.0,0.05043904]
[1725082384174,0.02638226,59478.0,59476.0,0.05043904]
[1725082384383,0.02638226,59478.0,59475.0,0.129695]
[1725082384384,0.001,59477.0,59475.0,0.129695]
[1725082384597,0.001,59477.0,59476.0,0.05045639]
[1725082384825,0.001,59477.0,59475.0,0.129695]
[1725082385042,0.02638226,59478.0,59476.0,0.05045639]
[1725082385262,0.02638226,59478.0,59477.0,0.05045639]
[1725082385263,0.02738226,59478.0,59477.0,0.05045639]
[1725082385709,0.02638226,59478.0,59477.0,0.05045639]
[1725082385927,0.02638226,59478.0,59475.0,0.117695]
[1725082386135,0.001,59477.0,59475.0,0.129695]
[1725082386264,0.001,59477.0,59475.0,0.20539485]
[1725082386680,0.002,59477.0,59476.0,0.012]
[1725082386882,0.001,59477.0,59475.0,0.20539485]
[1725082387095,0.001,59477.0,59476.0,0.37354256]
[1725082387307,0.001,59477.0,59476.0,0.37444236]
[1725082387946,0.002,59477.0,59476.0,0.50413636]
[1725082388148,0.002,59477.0,59476.0,0.60509371]
[1725082388347,0.003,59477.0,59476.0,0.61709371]
[1725082388714,0.003,59477.0,59476.0,0.51613636]
[1725082389345,0.003,59477.0,59476.0,0.61709371]
[1725082390249,0.591462,59477.0,59476.0,0.49939971]
[1725082390463,0.859647,59477.0,59476.0,0.10066262]
[1725082390907,0.859647,59477.0,59476.0,0.0248998]
[1725082391115,0.624262,59477.0,59476.0,0.0248998]
[1725082391552,0.623262,59477.0,59476.0,0.0128998]
[1725082391555,0.624262,59477.0,59476.0,0.0238998]
[1725082391788,0.622262,59477.0,59476.0,0.0118998]
[1725082392010,0.621262,59477.0,59476.0,0.0008998]
[1725082392235,0.622262,59477.0,59476.0,0.0128998]
[1725082393181,0.722262,59477.0,59476.0,0.0128998]
[1725082393414,0.723262,59477.0,59476.0,0.07540543]
[1725082393647,0.721262,59477.0,59476.0,0.05140543]
[1725082394115,0.722262,59477.0,59476.0,0.0118998]
[1725082394313,4.232831,59477.0,59476.0,0.0118998]
[1725082394792,4.231831,59477.0,59476.0,0.0008998]
[1725082395023,4.232831,59477.0,59476.0,0.0118998]
[1725082395290,4.232831,59477.0,59476.0,0.0228998]
[1725082395291,4.469216,59477.0,59476.0,0.0228998]
[1725082395983,4.469216,59477.0,59476.0,0.0118998]
[1725082395984,4.468216,59477.0,59476.0,0.0118998]
[1725082396926,4.467216,59477.0,59476.0,0.0008998]
[1725082397385,4.467216,59477.0,59476.0,0.0068998]
[1725082397386,4.468216,59477.0,59476.0,0.0068998]
[1725082397612,4.468216,59477.0,59476.0,0.0008998]
[1725082397838,4.4941779,59477.0,59476.0,0.0058998]
[1725082398063,4.7295629,59477.0,59476.0,0.0058998]
[1725082398283,4.7295629,59477.0,59476.0,0.0008998]
[1725082398284,4.7285629,59477.0,59476.0,0.0008998]
[1725082399778,4.7293809,59477.0,59476.0,0.0008998]
[1725082400023,4.7283809,59477.0,59476.0,0.0008998]
[1725082400477,4.7313809,59477.0,59476.0,0.0008998]
[1725082400922,4.7343809,59477.0,59476.0,0.0008998]
[1725082402385,4.81665931,59477.0,59476.0,0.0008998]
[1725082405925,4.83427173,59477.0,59476.0,0.0008998]
[1725082406375,4.75199332,59477.0,59476.0,0.0008998]
[1725082406862,4.83427173,59477.0,59476.0,0.0008998]
[1725082416320,0.235466,59457.0,59454.0,0.0008998]
[1725082416537,0.353172,59461.0,59460.0,0.50540786]
[1725082416750,0.117731,59458.0,59454.0,0.0008998]
[1725082416961,0.117732,59457.0,59455.0,0.1425]
[1725082417400,0.08227841,59456.0,59455.0,0.1425]
[1725082418019,0.08227841,59456.0,59455.0,0.1475]
[1725082418487,0.08227841,59456.0,59455.0,0.1425]
[1725082418715,0.43548041,59456.0,59455.0,0.1425]
[1725082419132,0.43548041,59456.0,59455.0,0.1485]
[1725082419846,0.43648041,59456.0,59455.0,0.1535]
[1725082420263,0.43548041,59456.0,59455.0,0.1425]
[1725082420700,0.43748041,59456.0,59455.0,0.1535]
[1725082421771,0.20201241,59456.0,59455.0,0.1535]
[1725082423540,0.20201241,59456.0,59455.0,0.1543998]
[1725082425318,0.08427841,59456.0,59455.0,0.1543998]
[1725082427902,0.002,59456.0,59455.0,0.1543998]
[1725082430258,0.08227841,59459.0,59455.0,0.1543998]
[1725082430482,0.11773,59458.0,59455.0,0.2721348]
[1725082431399,0.20000641,59459.0,59455.0,0.2611348]
[1725082431612,0.20100641,59459.0,59455.0,0.2671348]
[1725082431852,0.001,59458.0,59455.0,0.2721348]
[1725082432301,0.0263904,59461.0,59455.0,0.2721348]
[1725082432507,0.20000641,59459.0,59455.0,0.2721348]
[1725082432857,0.08227841,59459.0,59455.0,0.2721348]
[1725082433059,0.18227841,59459.0,59455.0,0.2611348]
[1725082433262,0.18327841,59459.0,59455.0,0.2741348]
[1725082433463,0.001,59458.0,59455.0,0.2741348]
[1725082434037,0.18327841,59459.0,59455.0,0.2671348]
[1725082434283,0.18427841,59459.0,59455.0,0.2751348]
[1725082434486,0.18427841,59459.0,59456.0,0.117733]
[1725082434692,0.18227841,59459.0,59456.0,0.117733]
[1725082435077,0.002,59458.0,59456.0,0.117733]
[1725082436121,0.002,59458.0,59457.0,0.117732]
[1725082436322,0.001,59458.0,59457.0,0.117732]
[1725082436532,0.08227841,59459.0,59457.0,0.117732]
[1725082436740,0.08327841,59459.0,59457.0,0.117732]
[1725082436950,0.08427841,59459.0,59457.0,0.117732]
[1725082437154,0.08327841,59459.0,59457.0,0.117732]
[1725082437562,0.002,59458.0,59457.0,0.134732]
[1725082437762,0.002,59458.0,59457.0,0.126732]
[1725082437899,0.001,59458.0,59457.0,0.117732]
[1725082438101,0.001,59458.0,59457.0,0.125732]
[1725082438325,0.001,59458.0,59457.0,0.134732]
[1725082438500,0.235444,59463.0,59457.0,0.134732]
[1725082438697,0.08227841,59460.0,59457.0,0.18521815]
[1725082439482,0.08227841,59460.0,59458.0,0.05048615]
[1725082439879,0.08227841,59460.0,59458.0,0.04948615]
[1725082440541,0.001,59458.0,59457.0,0.124732]
[1725082440949,0.18327841,59460.0,59457.0,0.117732]
[1725082441152,0.18327841,59460.0,59458.0,0.007]
[1725082441488,0.20966853,59460.0,59458.0,0.007]
[1725082441710,0.20966853,59460.0,59458.0,0.006]
[1725082441937,0.12739012,59460.0,59459.0,0.117728]
[1725082442141,0.12739012,59460.0,59459.0,0.73054]
[1725082442142,0.12639012,59460.0,59459.0,0.73054]
[1725082442345,0.12639012,59460.0,59459.0,1.10420204]
[1725082442933,0.12639012,59460.0,59459.0,1.10320204]
[1725082443375,0.02639012,59460.0,59459.0,1.43979877]
[1725082443584,0.02839012,59460.0,59459.0,1.3486516]
[1725082443793,0.02739012,59460.0,59459.0,1.3486516]
[1725082444239,0.02739012,59460.0,59459.0,1.3576516]
[1725082444240,0.02839012,59460.0,59459.0,1.3576516]
[1725082444985,0.02839012,59460.0,59459.0,1.48406513]
[1725082445189,0.02839012,59460.0,59459.0,1.3576516]
[1725082445606,0.02839012,59460.0,59459.0,1.48404453]
[1725082445810,0.02839012,59460.0,59459.0,1.48401372]
[1725082446168,0.02839012,59460.0,59459.0,1.3576212]
[1725082446518,0.02839012,59460.0,59459.0,1.1221652]
[1725082450912,0.02839012,59460.0,59459.0,1.12217469]
[1725082453422,0.07176278,59470.0,59461.0,0.138]
[1725082453650,0.07176278,59470.0,59465.0,0.05053164]
[1725082453869,0.11771,59468.0,59466.0,0.05053164]
[1725082454086,0.11771,59468.0,59467.0,0.138]
[1725082455447,0.21771,59468.0,59467.0,0.138]
[1725082456244,0.21771,59468.0,59467.0,0.14]
[1725082456717,0.21771,59468.0,59467.0,0.138]
[1725082457117,0.21871,59468.0,59467.0,0.148]
[1725082457896,0.101,59468.0,59467.0,0.15]
[1725082458130,0.21871,59468.0,59467.0,0.15]
[1725082458763,0.21871,59468.0,59467.0,0.148]
[1725082458975,0.21971,59468.0,59467.0,0.159]
[1725082459800,0.220528,59468.0,59467.0,0.159]
[1725082464972,0.220528,59468.0,59467.0,0.20952538]
[1725082466049,0.220528,59468.0,59467.0,0.2095113]
[1725082466662,0.220528,59468.0,59467.0,0.159]
[1725082467531,0.220528,59468.0,59467.0,0.2095113]
[1725082468468,0.220528,59468.0,59467.0,0.159]
[1725082469614,0.45573129,59468.0,59467.0,0.159]
[1725082471720,0.13084053,59468.0,59467.0,0.159]
[1725082472395,0.36626053,59468.0,59467.0,0.159]
[1725082473235,0.36626053,59468.0,59467.0,0.1598998]
[1725082473686,0.46626053,59468.0,59467.0,0.1598998]
[1725082482757,0.23084053,59468.0,59467.0,0.1598998]
[1725082483577,0.23084053,59468.0,59467.0,0.23571445]
[1725082484217,0.23084053,59468.0,59467.0,0.63462448]
[1725082484423,0.23084053,59468.0,59467.0,0.53353827]
[1725082485269,0.23165853,59468.0,59467.0,0.53353827]
[1725082486381,0.23165853,59468.0,59467.0,0.53353204]
[1725082487673,0.46707853,59468.0,59467.0,0.62468216]
[1725082487891,0.46807853,59468.0,59467.0,0.62368216]
[1725082488104,0.46907853,59468.0,59467.0,0.63468216]
[1725082488568,0.46807853,59468.0,59467.0,0.62368216]
[1725082488801,0.46907853,59468.0,59467.0,0.63468216]
[1725082489373,0.46807853,59468.0,59467.0,0.61368216]
[1725082489576,0.23165853,59468.0,59467.0,0.61368216]
[1725082489776,0.23265853,59468.0,59467.0,0.62468216]
[1725082490182,0.23265853,59468.0,59467.0,0.61368216]
[1725082490183,0.23165853,59468.0,59467.0,0.61368216]
[1725082490582,0.23165853,59468.0,59467.0,0.62468216]
[1725082490784,0.23165853,59468.0,59467.0,0.23879664]
[1725082490785,0.001,59468.0,59467.0,0.23879664]
[1725082491601,0.35413,59468.0,59467.0,0.23879664]
[1725082493247,0.45413,59468.0,59467.0,0.23879664]
[1725082495208,0.21871,59468.0,59467.0,0.23879664]
[1725082495412,0.21871,59468.0,59467.0,0.53652697]
[1725082495613,0.21871,59468.0,59467.0,0.2387936]
[1725082495825,0.21871,59468.0,59467.0,0.53653206]
[1725082496033,0.21871,59468.0,59467.0,0.61242588]
[1725082496254,0.21871,59468.0,59467.0,0.23879362]
[1725082497085,0.21871,59468.0,59467.0,0.61242404]
[1725082497297,0.219528,59468.0,59467.0,0.61242404]
[1725082497505,0.219528,59468.0,59467.0,0.23879292]
[1725082498143,0.219528,59468.0,59467.0,0.61242039]
[1725082498352,0.219528,59468.0,59467.0,0.23879345]
[1725082500416,0.219528,59468.0,59467.0,0.53653092]
[1725082500714,0.219528,59468.0,59467.0,0.53653028]
[1725082501095,0.219528,59468.0,59467.0,0.63772227]
[1725082502048,0.219528,59468.0,59467.0,0.53653028]
[1725082502461,0.219528,59468.0,59467.0,0.63772159]
[1725082503474,0.219528,59468.0,59467.0,0.1628998]
[1725082504331,0.101818,59468.0,59467.0,0.5160358]
[1725082504529,0.001818,59468.0,59467.0,0.2806118]
[1725082504779,0.101818,59468.0,59467.0,0.2806118]
[1725082506040,0.001818,59468.0,59467.0,0.2806118]
[1725082506247,0.101818,59468.0,59467.0,0.2806118]
[1725082507422,0.001818,59468.0,59467.0,0.2806118]
[1725082510046,0.01943042,59468.0,59467.0,0.2806118]
[1725082510803,0.01943042,59468.0,59467.0,0.1628998]
[1725082511562,0.01943042,59468.0,59467.0,0.53651011]
[1725082511998,0.01943042,59468.0,59467.0,0.65422211]
[1725082512865,0.29144823,59473.0,59467.0,0.7554105]
[1725082513092,0.117705,59471.0,59470.0,0.07589129]
[1725082513523,0.117705,59471.0,59470.0,0.07489129]
[1725082513966,0.117705,59471.0,59470.0,0.07389129]
[1725082514235,0.117705,59471.0,59467.0,0.38580019]
[1725082514476,0.117706,59470.0,59468.0,0.37361259]
[1725082514701,0.117706,59470.0,59469.0,0.37361259]
[1725082515129,0.117705,59471.0,59467.0,0.1528998]
[1725082515364,0.117705,59471.0,59468.0,0.37361199]
[1725082515606,0.117705,59471.0,59467.0,0.1388998]
[1725082515830,0.118705,59471.0,59470.0,0.014]
[1725082516295,0.117705,59471.0,59467.0,0.1388998]
[1725082516507,0.117705,59471.0,59468.0,0.014]
[1725082516726,0.118705,59471.0,59468.0,0.014]
[1725082516943,0.118705,59471.0,59470.0,0.014]
[1725082517163,0.217705,59471.0,59470.0,0.014]
[1725082517375,0.217705,59471.0,59467.0,0.1388998]
[1725082517577,0.1,59470.0,59467.0,0.1388998]
[1725082518671,0.1,59470.0,59468.0,0.014]
[1725082518878,0.217706,59470.0,59467.0,0.1528998]
[1725082519937,0.217706,59470.0,59468.0,0.014]
[1725082520140,0.217706,59470.0,59467.0,0.1528998]
[1725082520353,0.217706,59470.0,59467.0,0.1668998]
[1725082521185,0.08227841,59473.0,59467.0,0.1668998]
[1725082521407,0.08227841,59473.0,59470.0,0.05056776]
[1725082522434,0.117704,59471.0,59470.0,0.05056776]
[1725082522641,0.117704,59471.0,59470.0,0.06356776]
[1725082522855,0.117704,59471.0,59470.0,0.07656776]
[1725082523290,0.117704,59471.0,59470.0,0.05056776]
[1725082523510,0.217704,59471.0,59470.0,0.05056776]
[1725082523714,0.217704,59471.0,59470.0,0.07856776]
[1725082524970,0.217704,59471.0,59470.0,0.028]
[1725082526972,0.31767941,59473.0,59470.0,0.028]
[1725082527183,0.31767941,59473.0,59471.0,0.05056506]
[1725082527184,0.117702,59472.0,59471.0,0.05056506]
[1725082527388,0.353108,59472.0,59471.0,0.05056506]
[1725082527594,0.117704,59471.0,59470.0,0.028]
[1725082527998,0.117704,59471.0,59470.0,0.014]
[1725082528414,0.117704,59471.0,59470.0,0.027]
[1725082528826,0.08227841,59473.0,59470.0,0.014]
[1725082529034,0.000818,59475.0,59471.0,0.18336504]
[1725082529239,0.000818,59475.0,59472.0,0.05056504]
[1725082529479,0.000818,59475.0,59473.0,0.1177]
[1725082529858,0.000818,59475.0,59474.0,0.117698]
[1725082530063,0.000818,59475.0,59474.0,0.485894]
[1725082531159,0.000818,59475.0,59474.0,0.250498]
[1725082532054,0.00592209,59475.0,59474.0,0.250498]